bitfinex-derivatives/quotes_SOLF0:USTF0_20250409
["timestamp","ask_amount","ask_price","bid_price","bid_amount"]
[1744219066672,9.30191864,108.29,108.27,4.49199869]
[1744219067472,9.2425,108.28,108.27,4.49199869]
[1744219067671,9.2425,108.28,108.27,0.06869869]
[1744219068768,0.05981864,108.29,108.27,0.06869869]
[1744219069176,0.05981864,108.29,108.27,9.31199869]
[1744219069471,0.05981864,108.29,108.27,0.06869869]
[1744219069876,0.05981864,108.29,108.27,9.31139869]
[1744219070172,0.05981864,108.29,108.27,0.06869869]
[1744219070364,45.72,108.3,108.27,0.06869869]
[1744219070566,54.9609,108.3,108.27,9.31159869]
[1744219070767,45.72,108.33,108.27,0.06869869]
[1744219070969,45.72,108.33,108.25,365.0]
[1744219071169,45.72,108.33,108.27,9.243]
[1744219071369,45.72,108.33,108.25,365.0]
[1744219071569,0.06401129,108.31,108.29,0.06249793]
[1744219071869,54.9808,108.3,108.29,0.06249793]
[1744219077075,54.9808,108.3,108.29,9.793e-05]
[1744219077786,45.74,108.3,108.25,365.0]
[1744219078081,23.51160086,108.29,108.25,365.0]
[1744219078271,23.51160086,108.29,108.23,13.7817]
[1744219078979,9.2445,108.26,108.25,0.06496585]
[1744219079581,54.9845,108.26,108.25,0.06496585]
[1744219079877,9.2472,108.23,108.2,472.90944626]
[1744219080271,9.2464,108.24,108.2,482.15814626]
[1744219080679,9.2464,108.24,108.21,9.2484]
[1744219080879,0.06215401,108.23,108.21,0.06891774]
[1744219081376,0.06215401,108.23,108.21,13.93041774]
[1744219081577,0.06215401,108.23,108.21,4.68231774]
[1744219082282,45.74,108.26,108.21,13.93041774]
[1744219082578,9.2455,108.25,108.21,13.93041774]
[1744219082881,45.74,108.26,108.21,13.93041774]
[1744219083078,45.74,108.26,108.21,4.68231774]
[1744219083279,0.06767041,108.25,108.21,4.68231774]
[1744219083578,9.2476,108.22,108.21,0.06891774]
[1744219083783,69.25160086,108.26,108.21,0.06891774]
[1744219084079,0.06980177,108.23,108.21,0.06891774]
[1744219084587,9.2476,108.22,108.21,0.06891774]
[1744219085088,9.31720177,108.23,108.21,0.06891774]
[1744219085269,0.06980177,108.23,108.21,0.06891774]
[1744219085470,9.31700177,108.23,108.21,0.06891774]
[1744219085984,9.2476,108.22,108.21,0.06891774]
[1744219086185,0.06980177,108.23,108.21,0.06891774]
[1744219086578,9.2476,108.22,108.21,0.06891774]
[1744219086784,0.06980177,108.23,108.21,0.06891774]
[1744219087686,55.0076,108.22,108.21,0.06891774]
[1744219089289,0.06980177,108.23,108.21,0.06891774]
[1744219089496,45.76,108.25,108.21,0.06891774]
[1744219090298,45.76,108.25,108.21,9.31681774]
[1744219090500,9.2465,108.24,108.22,4.7157]
[1744219090701,0.0597919,108.24,108.22,4.7157]
[1744219090999,0.0597919,108.24,108.22,18.3699]
[1744219091501,45.76,108.28,108.22,18.3699]
[1744219091704,45.76,108.31,108.22,374.1227]
[1744219092092,45.76,108.31,108.25,9.2447]
[1744219092290,9.243,108.28,108.25,9.2447]
[1744219092698,0.06179752,108.28,108.25,9.31370695]
[1744219093994,0.06179752,108.28,108.26,9.2435]
[1744219094189,45.76,108.31,108.26,9.2435]
[1744219094390,45.76,108.31,108.27,9.2342]
[1744219094591,9.2422,108.29,108.27,9.2342]
[1744219095403,9.2425,108.28,108.27,9.29545909]
[1744219095606,9.2425,108.28,108.27,0.06125909]
[1744219096304,9.30489363,108.29,108.27,0.06125909]
[1744219097805,9.2425,108.28,108.27,0.06125909]
[1744219098005,0.06279363,108.29,108.27,0.06125909]
[1744219098504,9.30509363,108.29,108.27,0.06125909]
[1744219098806,0.06279363,108.29,108.27,0.06125909]
[1744219099006,0.06279363,108.29,108.27,9.30425909]
[1744219099308,0.06279363,108.29,108.27,0.06125909]
[1744219099702,9.30489363,108.29,108.27,0.06125909]
[1744219099896,0.06279363,108.29,108.27,0.06125909]
[1744219100309,9.30479363,108.29,108.27,0.06125909]
[1744219100613,0.06279363,108.29,108.27,0.06125909]
[1744219100806,0.06279363,108.29,108.28,9.2425]
[1744219101107,45.76,108.31,108.27,365.06125909]
[1744219101505,9.2411,108.3,108.28,9.2423]
[1744219101805,45.76,108.31,108.27,365.06125909]
[1744219101990,9.242,108.29,108.27,365.06125909]
[1744219102190,0.06528146,108.3,108.27,365.06125909]
[1744219102392,9.2425,108.28,108.27,365.06125909]
[1744219103111,9.2425,108.28,108.27,0.06125909]
[1744219103608,23.51160086,108.28,108.23,365.0]
[1744219103800,45.7,108.27,108.23,365.0]
[1744219104311,9.2458,108.25,108.23,365.0]
[1744219104499,45.7,108.27,108.23,365.0]
[1744219104698,0.06005831,108.25,108.23,365.05950247]
[1744219105408,9.30565831,108.25,108.23,365.05950247]
[1744219105707,0.06005831,108.25,108.23,365.05950247]
[1744219106111,9.2459,108.24,108.23,365.05950247]
[1744219106305,9.2459,108.24,108.23,0.05950247]
[1744219106500,0.06005831,108.25,108.23,0.05950247]
[1744219107004,9.30575831,108.25,108.23,0.05950247]
[1744219107511,9.2459,108.24,108.23,0.05950247]
[1744219108311,9.30565831,108.25,108.23,0.05950247]
[1744219108609,0.06005831,108.25,108.23,0.05950247]
[1744219109110,0.06005831,108.25,108.23,9.30590247]
[1744219109511,0.06005831,108.25,108.23,0.05950247]
[1744219109712,0.06005831,108.25,108.24,9.2459]
[1744219110012,45.7,108.27,108.23,365.05950247]
[1744219110208,54.9439,108.27,108.24,9.2455]
[1744219110408,45.7,108.27,108.24,9.2455]
[1744219110813,9.2442,108.26,108.24,9.2455]
[1744219111314,9.30560118,108.26,108.24,9.2455]
[1744219111614,0.06140118,108.26,108.23,365.05950247]
[1744219112714,23.57300204,108.26,108.23,0.05950247]
[1744219113308,23.57300204,108.26,108.17,4.5775]
[1744219113509,37.10070086,108.26,108.17,374.0254]
[1744219113803,37.10070086,108.26,108.17,383.2769]
[1744219114216,9.249,108.21,108.17,374.0254]
[1744219114414,45.7,108.23,108.17,374.0254]
[1744219114605,0.06041041,108.2,108.18,0.06502961]
[1744219114799,9.31001041,108.2,108.18,0.06502961]
[1744219115005,0.06041041,108.2,108.18,0.06502961]
[1744219115416,0.06041041,108.2,108.18,9.31572961]
[1744219115909,0.06041041,108.2,108.18,0.06502961]
[1744219116217,0.06041041,108.2,108.18,9.31562961]
[1744219116816,0.06041041,108.2,108.18,0.06502961]
[1744219117911,54.9702,108.19,108.18,0.06502961]
[1744219118115,54.9702,108.19,108.18,2.961e-05]
[1744219118619,9.2544,108.14,108.13,9.3429]
[1744219118915,45.72,108.19,108.13,9.3429]
[1744219119115,9.2525,108.17,108.13,9.3429]
[1744219119504,45.72,108.19,108.13,9.3429]
[1744219119713,0.06167545,108.16,108.14,0.05978277]
[1744219120218,9.31447545,108.16,108.14,0.05978277]
[1744219120411,0.06167545,108.16,108.14,0.05978277]
[1744219120806,0.06167545,108.16,108.14,9.31378277]
[1744219121105,0.06167545,108.16,108.14,0.05978277]
[1744219121715,45.72,108.22,108.14,365.05978277]
[1744219121920,45.72,108.23,108.14,365.0]
[1744219122613,23.51160086,108.17,108.11,365.0]
[1744219122818,9.2577,108.11,108.06,374.2609]
[1744219123115,45.72,108.11,108.07,0.06777447]
[1744219123313,23.51160086,108.08,108.05,76.95724626]
[1744219123627,45.72,108.07,108.03,561.80369599]
[1744219123819,23.51160086,108.04,108.03,545.69819599]
[1744219124020,9.263,108.04,108.03,64.48660273]
[1744219124224,9.263,108.04,107.99,124.66389328]
[1744219124225,9.26,108.04,107.99,124.66389328]
[1744219124418,9.26,108.04,107.97,378.83829185]
[1744219124620,70.53480258,108.05,107.96,14.95601432]
[1744219124621,9.269,107.97,107.96,14.95601432]
[1744219124855,23.51160086,107.95,107.94,468.47347809]
[1744219125134,787.32,107.97,107.94,204.85311042]
[1744219125321,0.05861336,107.96,107.91,82.09844422]
[1744219125519,70.53480258,107.95,107.91,40.24564422]
[1744219125723,9.2785,107.86,107.85,73.77366248]
[1744219125912,32.79010086,107.86,107.85,73.77366248]
[1744219126113,9.2785,107.86,107.85,73.77366248]
[1744219126312,23.51160086,107.86,107.73,365.0]
[1744219126511,23.51160086,107.9,107.73,499.63160086]
[1744219126512,23.51160086,107.84,107.73,499.63160086]
[1744219126721,6.547892,107.85,107.76,138.87]
[1744219126918,6.547892,107.84,107.79,277.80738582]
[1744219127221,6.547892,107.84,107.81,138.87]
[1744219127424,6.61844535,107.83,107.8,138.93134629]
[1744219127724,6.547892,107.83,107.8,277.80738582]
[1744219127919,6.547892,107.82,107.8,0.06095117]
[1744219128124,13.26485846,107.82,107.8,5.117e-05]
[1744219128317,84.1428629,107.81,107.71,365.0]
[1744219128521,38.71294822,107.73,107.71,365.0]
[1744219128727,45.26084022,107.8,107.6,895.28258666]
[1744219128929,38.71294822,107.7,107.65,277.80738582]
[1744219129115,6.547892,107.69,107.61,1.85856333]
[1744219129317,9.2981,107.64,107.54,432.1934]
[1744219129633,0.06817297,107.66,107.64,8.271e-05]
[1744219129927,77.42589644,107.65,107.57,120.5659]
[1744219130124,309.80025549,107.62,107.52,138.93738582]
[1744219130325,309.80025549,107.62,107.56,120.5659]
[1744219130627,6.55605339,107.61,107.57,120.5659]
[1744219130817,0.06025912,107.6,107.58,259.57255539]
[1744219131144,6.61631251,107.6,107.59,259.50328582]
[1744219131326,205.296568,107.62,107.61,259.50328582]
[1744219131528,46.89221842,107.68,107.61,259.50328582]
[1744219131821,46.89221842,107.68,107.65,194.5793017]
[1744219132026,56.17221842,107.68,107.59,9.2524]
[1744219132217,38.71294822,107.66,107.6,120.5659]
[1744219132417,77.42589644,107.61,107.52,120.5659]
[1744219132620,38.71294822,107.61,107.38,9.2595]
[1744219132817,38.71294822,107.55,107.44,74.0134017]
[1744219133019,124.0,107.6,107.47,74.0134017]
[1744219133231,0.0707285,107.51,107.34,734.52]
[1744219133527,0.0707285,107.51,107.4,38.71294822]
[1744219133730,145.74136398,107.52,107.5,194.5793017]
[1744219133914,145.74136398,107.52,107.42,734.52]
[1744219134119,145.74136398,107.52,107.51,191.4199213]
[1744219134331,359.0,107.64,107.53,191.4199213]
[1744219134526,181.65899763,107.6,107.59,70.8540213]
[1744219134737,181.65899763,107.6,107.59,855.9659]
[1744219134926,0.06839658,107.58,107.54,735.4]
[1744219135117,46.89221842,107.75,107.59,191.4199213]
[1744219135430,359.0,107.73,107.61,128.5347674]
[1744219135620,46.89221842,107.75,107.61,350.6677]
[1744219135815,382.75434082,107.74,107.63,70.8540213]
[1744219136123,38.71294822,107.7,107.6,70.8540213]
[1744219136322,11.98680951,107.63,107.58,70.8540213]
[1744219136528,21.28580951,107.63,107.6,70.8540213]
[1744219136725,11.98680951,107.63,107.53,735.4]
[1744219136925,0.06556465,107.62,107.59,0.06921916]
[1744219137425,0.06556465,107.62,107.6,735.76]
[1744219137426,11.98680951,107.61,107.6,735.76]
[1744219137927,11.98680951,107.61,107.57,38.71294822]
[1744219138132,4.75700951,107.61,107.6,38.71294822]
[1744219138326,87.92944488,107.62,107.58,38.71294822]
[1744219138631,87.92944488,107.62,107.55,468.54278702]
[1744219139029,90.61250377,107.61,107.52,4.6029]
[1744219139237,51.89955555,107.61,107.52,4.6029]
[1744219139533,38.71294822,107.56,107.45,932.38064822]
[1744219139834,38.77215584,107.6,107.45,350.6677]
[1744219139835,38.71294822,107.54,107.45,350.6677]
[1744219140130,51.89955555,107.61,107.51,38.71294822]
[1744219140329,51.89955555,107.61,107.53,38.71294822]
[1744219140527,51.89955555,107.55,107.54,736.18]
[1744219140724,51.89955555,107.55,107.5,350.6677]
[1744219140925,51.89955555,107.55,107.5,129.594587]
[1744219141127,51.89955555,107.55,107.53,0.07112839]
[1744219141433,0.06995685,107.54,107.53,736.25112839]
[1744219141731,0.06995685,107.54,107.53,736.18]
[1744219141937,38.71294822,107.59,107.53,0.06767814]
[1744219142124,38.71294822,107.54,107.43,4.8031]
[1744219142325,38.71294822,107.53,107.43,4.8031]
[1744219142628,38.71294822,107.44,107.33,38.71294822]
[1744219142827,38.71294822,107.44,107.32,38.71294822]
[1744219143033,38.71294822,107.42,107.3,90.88163878]
[1744219143237,9.3212,107.37,107.3,90.88163878]
[1744219143422,38.71294822,107.47,107.34,38.71294822]
[1744219143625,0.05991018,107.37,107.35,0.06856526]
[1744219143819,38.71294822,107.5,107.35,0.06856526]
[1744219144039,35.77930246,107.4,107.35,90.88163878]
[1744219144236,35.77930246,107.4,107.35,38.71294822]
[1744219144536,35.77930246,107.4,107.35,9.32]
[1744219144739,35.77930246,107.4,107.35,38.71294822]
[1744219145032,0.060488,107.39,107.36,0.06395794]
[1744219145334,9.3208,107.37,107.36,5.794e-05]
[1744219146424,9.32,107.37,107.21,9.1204]
[1744219146626,38.71294822,107.35,107.21,836.46203878]
[1744219146824,736.94,107.41,107.21,836.46203878]
[1744219147021,38.71294822,107.35,107.21,100.00203878]
[1744219147232,38.71294822,107.33,107.21,100.00203878]
[1744219147437,38.71294822,107.35,107.22,38.71294822]
[1744219147624,359.0,107.44,107.28,38.71294822]
[1744219147821,194.19211319,107.37,107.33,38.71294822]
[1744219148022,236.92974606,107.39,107.36,38.71294822]
[1744219148240,236.92974606,107.39,107.37,38.71294822]
[1744219148624,257.25712865,107.41,107.38,38.71294822]
[1744219148832,35.49690272,107.43,107.4,77.42589644]
[1744219149028,94.65840726,107.45,107.42,38.71294822]
[1744219149230,4.3549,107.59,107.44,77.42589644]
[1744219149540,8.9987571,107.61,107.44,129.594587]
[1744219149740,18.62,107.64,107.5,38.71294822]
[1744219150045,46.89221842,107.67,107.6,38.71294822]
[1744219150228,46.89221842,107.67,107.64,38.71294822]
[1744219150426,46.89221842,107.67,107.59,703.31511211]
[1744219150849,46.95695679,107.67,107.64,38.77463013]
[1744219151050,46.95695679,107.67,107.66,48.00864822]
[1744219151346,51.90731491,107.66,107.65,38.71294822]
[1744219151541,77.86097237,107.73,107.64,0.06168191]
[1744219151842,77.86097237,107.73,107.65,38.71294822]
[1744219151843,1.073e-05,107.68,107.65,38.71294822]
[1744219152140,128.77949232,107.88,107.67,77.42589644]
[1744219152345,38.71294822,107.87,107.67,500.88163878]
[1744219152547,9.2837,107.8,107.71,38.71294822]
[1744219152748,37.31593194,107.77,107.68,736.7]
[1744219153045,9.2878,107.76,107.67,90.88163878]
[1744219153356,0.06474133,107.74,107.71,0.06751666]
[1744219153840,58.53860325,107.83,107.73,38.71294822]
[1744219154039,58.53860325,107.83,107.71,27.06751666]
[1744219154040,37.31593194,107.81,107.71,27.06751666]
[1744219154246,0.07007596,107.74,107.7,784.70504822]
[1744219154441,50.10880339,107.75,107.73,38.71294822]
[1744219154747,58.53860325,107.82,107.81,38.71294822]
[1744219155046,70.24088907,107.87,107.81,38.71294822]
[1744219155339,181.4698473,107.94,107.86,38.71294822]
[1744219155544,13.7832,108.09,107.93,38.71294822]
[1744219155737,13.04200325,108.04,107.99,38.71294822]
[1744219156041,37.31593194,108.06,107.95,38.71294822]
[1744219156242,37.31593194,108.06,107.94,62.0]
[1744219156243,0.06451896,108.02,107.94,62.0]
[1744219156444,0.06451896,108.02,107.95,38.71294822]
[1744219156653,0.06451896,108.02,108.01,38.71294822]
[1744219156835,359.0,108.28,108.01,38.71294822]
[1744219157035,2.711e-05,108.0,107.95,38.71294822]
[1744219157234,2.711e-05,108.0,107.84,18.5601]
[1744219157546,38.71294822,108.21,108.01,289.77328257]
[1744219157847,37.31593194,108.11,107.99,1023.2527112]
[1744219158142,38.71294822,108.12,107.99,403.71294822]
[1744219158343,4.52,108.13,107.99,654.77328257]
[1744219158544,13.04200325,108.05,107.95,38.71294822]
[1744219158736,13.04200325,108.07,107.9,1428.48623079]
[1744219158937,23.1959,108.11,107.9,1138.71294822]
[1744219159148,359.0,108.19,108.04,38.71294822]
[1744219159443,18.62,108.17,108.05,38.71294822]
[1744219159639,13.04200325,108.14,108.08,38.71294822]
[1744219159837,4.539,108.24,108.13,38.71294822]
[1744219160034,18.62,108.24,108.16,38.71294822]
[1744219160239,13.04200325,108.21,108.14,38.71294822]
[1744219160438,13.04200325,108.22,108.17,38.71294822]
[1744219160642,18.62,108.24,108.1,735.0]
[1744219160843,38.71294822,108.4,108.2,38.71294822]
[1744219161044,38.71294822,108.3,108.15,289.77328257]
[1744219161248,1.593e-05,108.18,108.16,0.06029733]
[1744219161445,18.62,108.33,108.17,38.71294822]
[1744219161637,13.04200325,108.31,108.25,38.71294822]
[1744219161841,9.2684,108.43,108.28,38.71294822]
[1744219162143,27.8884,108.43,108.25,38.71294822]
[1744219162348,13.04200325,108.34,108.28,38.71294822]
[1744219162547,13.04200325,108.37,108.34,9.2372]
[1744219162850,13.04200325,108.38,108.33,0.06334757]
[1744219163048,0.05840357,108.37,108.34,38.71294822]
[1744219163436,68.97793519,108.37,108.3,365.0]
[1744219163652,13.04200325,108.33,108.3,365.0]
[1744219163856,18.67946424,108.37,108.32,0.0595781]
[1744219164157,6.02257741,108.49,108.32,0.0595781]
[1744219164336,0.06716645,108.36,108.32,0.0595781]
[1744219164539,18.62,108.49,108.23,733.28]
[1744219164738,44.97522229,108.58,108.24,179.90088916]
[1744219164935,9.2238,108.5,108.4,44.97522229]
[1744219165138,9.2238,108.5,108.24,701.44475901]
[1744219165139,44.97522229,108.54,108.37,44.97522229]
[1744219165347,22.9931,108.61,108.37,654.77328257]
[1744219165348,12.76507166,108.51,108.37,654.77328257]
[1744219165549,44.97522229,108.58,108.42,44.97522229]
[1744219165847,12.76507166,108.52,108.45,44.97522229]
[1744219166047,12.76507166,108.53,108.44,44.97522229]
[1744219166250,0.05932541,108.5,108.44,44.97522229]
[1744219166545,0.05932541,108.5,108.45,44.97522229]
[1744219166748,9.376,108.64,108.48,44.97522229]
[1744219166947,12.76507166,108.61,108.51,44.97522229]
[1744219167140,50.0810036,108.59,108.52,44.97522229]
[1744219167336,12.76507166,108.57,108.45,62.0]
[1744219167541,0.0667687,108.57,108.48,44.97522229]
[1744219167744,12.76507166,108.55,108.54,0.07001938]
[1744219167950,37.31593194,108.56,108.54,0.07001938]
[1744219168262,17.33868013,108.57,108.48,409.97522229]
[1744219168444,4.6209,108.63,108.48,365.0]
[1744219168650,12.76507166,108.56,108.48,365.0]
[1744219168851,37.31593194,108.51,108.48,365.0]
[1744219169050,12.76507166,108.51,108.31,654.77328257]
[1744219169248,12.76507166,108.49,108.35,44.97522229]
[1744219169558,17.33868013,108.51,108.41,44.97522229]
[1744219169748,4.6209,108.63,108.47,44.97522229]
[1744219169945,37.31593194,108.61,108.49,44.97522229]
[1744219170247,37.31593194,108.57,108.47,365.0]
[1744219170453,0.05883363,108.56,108.54,0.06926884]
[1744219170666,9.258,108.71,108.54,0.06926884]
[1744219170951,50.0810036,108.63,108.54,365.0]
[1744219171152,37.31593194,108.64,108.54,365.0]
[1744219171359,12.76507166,108.64,108.55,44.97522229]
[1744219171651,13.7733,108.71,108.55,365.0]
[1744219171957,17.33868013,108.71,108.63,44.97522229]
[1744219172155,3.723e-05,108.64,108.63,409.97522229]
[1744219172346,13.5001,108.85,108.63,409.97522229]
[1744219172543,50.0810036,108.77,108.67,44.97522229]
[1744219172850,50.0810036,108.72,108.67,365.0]
[1744219173052,12.76507166,108.7,108.58,365.0]
[1744219173255,44.97522229,108.69,108.58,365.0]
[1744219173461,50.0810036,108.63,108.58,365.0]
[1744219173658,50.15189926,108.65,108.59,9.2154]
[1744219173860,0.07089566,108.65,108.56,44.97522229]
[1744219174157,4.5242,108.83,108.59,0.06007144]
[1744219174348,7.07e-05,108.63,108.59,365.06007144]
[1744219174544,37.31593194,108.72,108.59,365.0]
[1744219174753,12.76507166,108.71,108.59,654.77328257]
[1744219174955,50.0810036,108.73,108.64,44.97522229]
[1744219175150,12.76507166,108.71,108.64,409.97522229]
[1744219175457,17.33868013,108.73,108.67,44.97522229]
[1744219175659,4.5242,108.83,108.67,699.74850486]
[1744219175842,0.06502154,108.71,108.67,699.74850486]
[1744219176049,0.06502154,108.71,108.69,0.06611308]
[1744219176245,12.76507166,108.7,108.6,365.0]
[1744219176450,12.76507166,108.69,108.6,365.0]
[1744219176745,50.0810036,108.69,108.6,365.0]
[1744219176953,37.31593194,108.66,108.6,365.0]
[1744219177147,12.76507166,108.65,108.55,44.97522229]
[1744219177352,12.76507166,108.67,108.55,654.77328257]
[1744219177547,0.0603197,108.61,108.59,0.06689069]
[1744219177761,37.31593194,108.65,108.59,365.06689069]
[1744219178055,12.76507166,108.64,108.59,365.0]
[1744219178264,4.7453,108.72,108.59,409.97522229]
[1744219178453,50.0810036,108.71,108.62,44.97522229]
[1744219178645,50.0810036,108.71,108.59,1384.79328257]
[1744219178851,0.06562298,108.68,108.65,0.069203]
[1744219179058,50.0810036,108.66,108.59,365.0]
[1744219179254,50.0810036,108.63,108.53,44.97522229]
[1744219179459,12.76507166,108.64,108.53,409.97522229]
[1744219179662,17.33868013,108.68,108.59,44.97522229]
[1744219179863,50.0810036,108.66,108.59,409.97522229]
[1744219180159,12.76507166,108.66,108.59,365.0]
[1744219180459,0.05987662,108.64,108.61,0.06211688]
[1744219180854,4.7066,108.81,108.61,654.77328257]
[1744219181159,17.33868013,108.73,108.66,44.97522229]
[1744219181464,17.33868013,108.73,108.66,699.74850486]
[1744219181669,9.2227,108.82,108.69,44.97522229]
[1744219181961,12.76507166,108.81,108.72,44.97522229]
[1744219182162,8.786e-05,108.77,108.74,0.07000293]
[1744219182345,8.786e-05,108.77,108.74,654.8432855]
[1744219182546,2.58356799,108.77,108.74,654.77328257]
[1744219182747,15.34863965,108.77,108.69,365.0]
[1744219182955,2.58356799,108.77,108.69,409.97522229]
[1744219183155,2.58348013,108.77,108.69,699.74850486]
[1744219183656,0.06371051,108.74,108.72,0.06093884]
[1744219183861,1.051e-05,108.74,108.73,9.2042]
[1744219184056,47.22099187,108.9,108.73,374.2]
[1744219184057,37.31593194,108.83,108.73,374.2]
[1744219184362,37.31593194,108.85,108.79,9.1985]
[1744219184564,11.80618013,108.9,108.82,37.99829187]
[1744219184748,9.4463,108.99,108.86,37.99829187]
[1744219184951,37.31593194,108.95,108.85,37.99829187]
[1744219185254,12.02978013,108.99,108.89,37.99829187]
[1744219185553,0.06384198,108.94,108.91,0.06447057]
[1744219185758,27.5073,109.15,108.93,37.99829187]
[1744219185965,37.31593194,109.02,108.95,37.99829187]
[1744219186264,37.99829187,109.13,109.0,37.99829187]
[1744219186457,37.99829187,109.09,108.91,4.3702]
[1744219186659,37.99829187,109.09,108.97,62.0]
[1744219186660,37.99829187,109.07,108.97,62.0]
[1744219186862,4.7589,109.12,109.04,9.1777]
[1744219187068,4.7589,109.12,109.01,38.05858236]
[1744219187263,4.7589,109.12,109.01,0.06029049]
[1744219187564,0.05821502,109.09,109.0,402.99829187]
[1744219187760,0.05821502,109.09,109.05,0.0585698]
[1744219187966,4.7589,109.12,109.05,0.0585698]
[1744219188153,9.1646,109.2,109.06,37.99829187]
[1744219188463,2.483e-05,109.08,109.07,9.23697853]
[1744219188664,9.1664,109.18,109.07,0.06147853]
[1744219188857,6.12911329,109.23,109.05,37.99829187]
[1744219189055,4.5341,109.23,109.14,37.99829187]
[1744219189258,4.5341,109.23,109.1,692.77157444]
[1744219189452,4.5341,109.23,109.12,37.99829187]
[1744219189759,4.5341,109.23,109.11,44.3039441]
[1744219189957,0.03295654,109.19,109.16,0.06244653]
[1744219190463,9.16,109.19,109.01,365.0]
[1744219190654,359.0,109.28,109.06,44.3039441]
[1744219190863,0.03295654,109.19,109.16,0.06420876]
[1744219191062,0.03295654,109.19,109.06,654.77328257]
[1744219191252,44.3039441,109.23,109.06,409.3039441]
[1744219191456,4.7058,109.22,108.97,654.77328257]
[1744219191766,0.03295654,109.14,108.97,365.0]
[1744219191967,4.7058,109.22,109.05,44.3039441]
[1744219192158,4.8138,109.28,109.11,44.3039441]
[1744219192363,4.8138,109.28,109.16,44.3039441]
[1744219192560,4.8138,109.28,109.22,9.1628]
[1744219192860,5.986e-05,109.21,109.18,0.05845103]
[1744219193056,4.8138,109.28,109.19,9.1647]
[1744219193265,4.8138,109.28,109.14,365.0]
[1744219193463,4.8138,109.28,109.13,44.3039441]
[1744219193663,1.83032854,109.27,109.16,44.3039441]
[1744219193872,1.55560956,109.27,109.19,44.3039441]
[1744219194064,1.55560956,109.27,109.25,9.1602]
[1744219194258,1.55560956,109.27,109.2,0.06373476]
[1744219194458,0.03352566,109.24,109.12,654.77328257]
[1744219194666,0.03352566,109.24,109.22,0.06669901]
[1744219194868,1.55560956,109.27,109.09,4.3523]
[1744219195063,1.55560956,109.27,109.22,9.1625]
[1744219195271,4.3905,109.34,109.1,289.77328257]
[1744219195472,4.3905,109.34,109.21,44.3039441]
[1744219195968,9.1496,109.38,109.24,44.3039441]
[1744219196178,0.07045324,109.29,109.26,0.06026202]
[1744219196469,44.3039441,109.38,109.18,771.2039441]
[1744219196470,4.7177,109.37,109.18,771.2039441]
[1744219196867,44.3039441,109.32,109.13,87.72839675]
[1744219197074,4.3905,109.31,109.13,87.72839675]
[1744219197457,0.02977143,109.23,109.21,0.0616594]
[1744219197663,0.02977143,109.23,109.13,87.72839675]
[1744219197864,9.13,109.23,109.13,87.72839675]
[1744219198073,53.4339441,109.23,109.13,87.72839675]
[1744219198298,44.3039441,109.2,109.13,73.27919675]
[1744219198578,9.13,109.23,109.13,73.27919675]
[1744219198765,9.13,109.23,109.05,654.77328257]
[1744219198971,0.06070118,109.18,109.15,0.06687774]
[1744219199364,44.3039441,109.24,109.05,365.0]
[1744219199565,44.36909879,109.18,109.04,80.42096422]
[1744219199866,4.6831,109.17,109.04,80.42096422]
[1744219200173,44.3039441,109.25,109.1,0.0604136]
[1744219200371,730.8431,109.3,109.1,0.0604136]
[1744219200672,730.8431,109.3,109.02,304.0]
[1744219200673,359.0,109.29,109.02,304.0]
[1744219200873,44.3039441,109.07,108.99,131.59259513]
[1744219201377,44.3039441,109.0,108.95,274.15123987]
[1744219201567,44.3039441,108.99,108.85,275.95119589]
[1744219201879,44.3039441,108.98,108.96,0.05986475]
[1744219202181,4.4026,108.97,108.83,288.40590845]
[1744219202377,0.03347403,108.93,108.84,9.1947]
[1744219202580,0.03347403,108.93,108.83,288.40590845]
[1744219202885,44.3039441,108.93,108.83,288.40590845]
[1744219203068,44.3039441,109.02,108.83,288.40590845]
[1744219203384,0.05892945,108.89,108.87,0.0612895]
[1744219203576,4.4143,109.03,108.87,0.0612895]
[1744219203878,4.4143,109.03,108.83,653.40590845]
[1744219204064,44.3039441,109.0,108.84,44.3039441]
[1744219204268,4.4143,109.03,108.85,62.0]
[1744219204467,4.4143,109.03,108.87,44.3039441]
[1744219204676,9.1829,108.99,108.9,44.3039441]
[1744219204878,4.4143,109.03,108.93,9.99e-05]
[1744219204879,0.03440933,108.95,108.93,9.99e-05]
[1744219205081,44.3039441,108.94,108.83,288.40590845]
[1744219205282,726.7,109.0,108.83,288.40590845]
[1744219205493,44.3039441,108.92,108.83,288.40590845]
[1744219205676,726.7,108.92,108.83,288.40590845]
[1744219205984,44.3039441,108.86,108.75,3.67560922]